bitfinex/quotes_SOLUSD_20230103
["timestamp","ask_amount","ask_price","bid_price","bid_amount"]
[1672770110433,66.63207139,12.773,12.77,39.9608919]
[1672770110649,66.63207139,12.771,12.77,39.9608919]
[1672770110838,86.63207139,12.771,12.77,39.9608919]
[1672770111050,92.37684883,12.771,12.77,39.9608919]
[1672770111465,92.49929159,12.771,12.77,39.9608919]
[1672770111700,98.93088949,12.771,12.77,39.9608919]
[1672770111889,92.37684883,12.771,12.77,39.9608919]
[1672770112099,66.63207139,12.783,12.771,107.14295931]
[1672770112311,30.0,12.784,12.771,107.14295931]
[1672770112520,51.47462966,12.783,12.771,101.39818187]
[1672770112734,56.25529801,12.782,12.771,101.39818187]
[1672770112957,32.00007545,12.782,12.771,101.39818187]
[1672770113274,5.59436496,12.781,12.771,101.39818187]
[1672770113482,5.59436496,12.781,12.771,160.17818187]
[1672770114531,20.0,12.78,12.771,160.17818187]
[1672770114948,5.59436496,12.779,12.771,160.17818187]
[1672770115149,5.59436496,12.779,12.772,812.5]
[1672770116512,8.16700412,12.779,12.772,812.5]
[1672770117051,54.49635546,12.778,12.772,812.5]
[1672770117471,6.88068454,12.777,12.772,812.5]
[1672770117665,57.06899462,12.777,12.772,812.5]
[1672770117876,5.59436496,12.776,12.772,812.5]
[1672770118097,20.0,12.775,12.772,812.5]
[1672770118523,56.94655186,12.774,12.772,812.5]
[1672770118712,56.94655186,12.774,12.772,871.28]
[1672770118926,5.59436496,12.773,12.772,871.28]
[1672770119136,5.59436496,12.773,12.772,812.5]
[1672770120397,7.0031273,12.773,12.771,101.39818187]
[1672770120613,31.74664807,12.772,12.771,101.39818187]
[1672770120823,37.34101303,12.772,12.771,101.39818187]
[1672770121027,38.62733261,12.772,12.771,101.39818187]
[1672770121245,8.28944688,12.772,12.771,101.39818187]
[1672770122820,5.59436496,12.772,12.771,101.39818187]
[1672770123357,5.59436496,12.772,12.771,160.17818187]
[1672770123554,25.59436496,12.772,12.771,160.17818187]
[1672770124516,0.00436496,12.772,12.771,160.17818187]
[1672770124735,7.0,12.79,12.771,276.26548187]
[1672770125044,5.59436496,12.779,12.771,276.26548187]
[1672770125881,5.59436496,12.779,12.772,30.0]
[1672770126102,5.59436496,12.779,12.773,58.77]
[1672770126306,5.59436496,12.779,12.774,30.0]
[1672770126530,5.59436496,12.779,12.775,58.76]
[1672770126834,0.00436496,12.779,12.776,30.0]
[1672770127050,50.42144012,12.787,12.778,30.0]
[1672770127239,50.42144012,12.787,12.779,58.75]
[1672770127449,67.5776,12.794,12.779,53.30212081]
[1672770127674,30.0,12.81,12.777,111.2574]
[1672770127675,2.98195187,12.793,12.781,43.91045787]
[1672770127887,109.2955,12.81,12.783,17.40858748]
[1672770128078,109.2955,12.81,12.78,83.5928]
[1672770128079,5.44787919,12.799,12.785,17.40858748]
[1672770128284,5.44787919,12.799,12.787,17.40858748]
[1672770128523,5.44787919,12.799,12.789,17.40858748]
[1672770128708,5.44787919,12.799,12.79,58.7]
[1672770128918,5.44787919,12.799,12.787,58.71]
[1672770129346,5.44787919,12.799,12.788,2.02282927]
[1672770129554,5.44787919,12.799,12.789,58.7]
[1672770129774,5.44787919,12.799,12.787,58.71]
[1672770129986,6.93,12.8,12.787,58.71]
[1672770131353,5.446,12.799,12.787,58.71]
[1672770132067,5.446,12.799,12.788,1.02694975]
[1672770132282,6.93,12.8,12.789,58.7]
[1672770132615,5.446,12.799,12.787,58.71]
[1672770132805,30.0,12.798,12.784,111.2574]
[1672770133017,5.447,12.797,12.784,111.2574]
[1672770133449,20.02150013,12.796,12.784,111.2574]
[1672770133660,5.448,12.795,12.784,111.2574]
[1672770134283,20.02150013,12.794,12.784,111.2574]
[1672770134492,5.445,12.793,12.784,111.2574]
[1672770136699,5.443,12.797,12.784,111.2574]
[1672770137651,20.02150013,12.796,12.784,111.2574]
[1672770137864,5.445,12.795,12.784,111.2574]
[1672770138802,6.93,12.79,12.784,111.2574]
[1672770140398,20.34874813,12.79,12.784,111.2574]
[1672770141328,48.18874813,12.79,12.784,111.2574]
[1672770141538,5.447,12.789,12.784,111.2574]
[1672770141751,5.447,12.789,12.771,101.39818187]
[1672770141969,30.0,12.788,12.772,174.3282]
[1672770142183,5.448,12.787,12.772,174.3282]
[1672770142580,13.41874813,12.786,12.772,174.3282]
[1672770143006,5.446,12.785,12.772,174.3282]
[1672770145642,6.97,12.78,12.772,174.3282]
[1672770146896,6.97,12.78,12.772,173.8282]
[1672770147751,6.97,12.78,12.772,169.91730116]
[1672770152062,13.41874813,12.779,12.772,169.91730116]
[1672770153232,66.63207139,12.778,12.771,101.39818187]
[1672770153424,66.63207139,12.776,12.771,101.39818187]
[1672770153635,66.63207139,12.774,12.771,101.39818187]
[1672770153852,66.63207139,12.778,12.771,87.97943374]
[1672770154066,66.63207139,12.779,12.772,58.78]
[1672770154598,6.97,12.78,12.772,58.78]
[1672770154789,6.97,12.78,12.773,118.3935]
[1672770156077,6.97,12.78,12.774,58.77]
[1672770156793,48.9136,12.788,12.774,58.77]
[1672770157004,6.96,12.79,12.775,17.40858748]
[1672770157342,6.96,12.79,12.777,17.40858748]
[1672770157541,34.84,12.79,12.778,58.75]
[1672770157757,30.0,12.788,12.779,17.40858748]
[1672770157950,30.0,12.788,12.774,124.73268748]
[1672770158376,30.0,12.788,12.774,107.3241]
[1672770158901,30.0,12.788,12.774,106.8241]
[1672770159641,5.446,12.787,12.774,106.8241]
[1672770160075,35.446,12.788,12.774,106.8241]
[1672770160594,30.0,12.789,12.774,106.8241]
[1672770160799,6.96,12.79,12.774,106.8241]
[1672770161643,30.0,12.789,12.774,106.8241]
[1672770161854,5.447,12.788,12.774,106.8241]
[1672770162459,6.93,12.78,12.774,106.8241]
[1672770162674,6.93,12.78,12.772,812.5]
[1672770162675,34.81,12.78,12.772,58.78]
[1672770162884,6.96,12.78,12.772,58.78]
[1672770163095,6.96,12.78,12.772,58.28]
[1672770163635,36.19604109,12.779,12.772,58.28]
[1672770166040,6.96,12.78,12.772,58.28]
[1672770166257,6.96,12.78,12.771,146.75943374]
[1672770166575,27.93089645,12.779,12.771,87.97943374]
[1672770166802,6.96,12.78,12.771,146.25943374]
[1672770167418,24.93975374,12.778,12.771,146.25943374]
[1672770167836,26.72512853,12.776,12.771,146.25943374]
[1672770168366,5.15888192,12.775,12.771,146.25943374]
[1672770170241,5.15888192,12.775,12.771,86.97943374]
[1672770170453,27.44080742,12.774,12.771,86.97943374]
[1672770170772,5.46143295,12.773,12.771,86.97943374]
[1672770171207,25.92068867,12.772,12.771,86.97943374]
[1672770171617,31.38212162,12.772,12.771,86.97943374]
[1672770172574,31.38212162,12.772,12.771,77.43013618]
[1672770174358,5.46143295,12.772,12.771,77.43013618]
[1672770175922,31.33478358,12.772,12.771,77.43013618]
[1672770176132,59.0029,12.79,12.771,136.21013618]
[1672770176338,30.0,12.787,12.772,106.0435]
[1672770176658,30.0,12.787,12.773,41.80206705]
[1672770176875,11.40343295,12.786,12.774,58.77]
[1672770177084,5.46143295,12.786,12.774,58.77]
[1672770177293,5.46143295,12.785,12.772,58.78]
[1672770179494,6.97,12.78,12.772,58.78]
[1672770179704,5.46143295,12.785,12.772,58.78]
[1672770179915,5.31841674,12.779,12.772,58.78]
[1672770180329,6.96,12.79,12.772,58.78]
[1672770180540,5.31841674,12.787,12.772,58.78]
[1672770181382,5.31841674,12.787,12.773,110.2824]
[1672770181608,5.31841674,12.787,12.774,58.77]
[1672770181803,5.31841674,12.787,12.775,46.2358]
[1672770182014,5.31841674,12.787,12.776,58.76]
[1672770182882,5.31841674,12.787,12.776,104.9958]
[1672770185207,11.26441674,12.787,12.776,104.9958]
[1672770185500,5.5242357,12.786,12.776,104.9958]
[1672770189160,5.5242357,12.786,12.776,46.2358]
[1672770190224,5.946,12.785,12.777,58.76]
[1672770190427,5.5242357,12.786,12.777,58.76]
[1672770190642,5.5242357,12.784,12.777,58.76]
[1672770196455,2.4398795,12.803,12.778,30.0]
[1672770196760,5.5242357,12.783,12.781,28.33138748]
[1672770196977,2.4398795,12.803,12.782,128.6701]
[1672770197189,5.5242357,12.8,12.783,98.27148748]
[1672770197507,5.5242357,12.8,12.784,105.6303]
[1672770197818,5.5242357,12.8,12.785,28.33138748]
[1672770198035,5.5242357,12.8,12.787,28.33138748]
[1672770198219,5.5242357,12.8,12.789,28.33138748]
[1672770198426,5.5242357,12.8,12.791,28.33138748]
[1672770198652,5.5242357,12.8,12.793,28.33138748]
[1672770198867,5.5242357,12.8,12.795,28.33138748]
[1672770199076,5.5242357,12.8,12.797,28.33138748]
[1672770199481,5.5242357,12.8,12.79,28.33138748]
[1672770199690,5.5242357,12.8,12.791,58.69]
[1672770199918,5.5242357,12.8,12.792,28.33138748]
[1672770200127,5.5242357,12.8,12.793,58.68]
[1672770200323,5.5242357,12.8,12.794,28.33138748]
[1672770200533,5.5242357,12.8,12.795,58.67]
[1672770200743,5.5242357,12.8,12.796,28.33138748]
[1672770201164,5.5242357,12.8,12.792,28.33138748]
[1672770201369,5.5242357,12.8,12.793,58.68]
[1672770201585,5.5242357,12.8,12.794,28.33138748]
[1672770201804,5.5242357,12.8,12.795,58.67]
[1672770202015,5.5242357,12.8,12.796,28.33138748]
[1672770202337,5.5242357,12.8,12.798,28.33138748]
[1672770202545,5.5242357,12.8,12.793,28.33138748]
[1672770202762,5.5242357,12.8,12.795,28.33138748]
[1672770202980,5.5242357,12.8,12.797,28.33138748]
[1672770203170,5.5242357,12.8,12.794,28.33138748]
[1672770203377,5.5242357,12.8,12.796,28.33138748]
[1672770203597,5.5242357,12.8,12.798,28.33138748]
[1672770203814,5.5242357,12.8,12.799,58.65]
[1672770204224,5.5242357,12.8,12.799,28.33138748]
[1672770204429,5.5242357,12.8,12.799,58.65]
[1672770204764,5.5242357,12.8,12.796,58.67]
[1672770204950,4.5242357,12.8,12.797,28.33138748]
[1672770205163,4.5242357,12.8,12.798,58.66]
[1672770205479,4.5242357,12.8,12.796,58.67]
[1672770205688,2.4398795,12.803,12.794,58.68]
[1672770205898,2.4398795,12.803,12.793,58.68]
[1672770206099,5.37945125,12.802,12.793,58.68]
[1672770212741,5.37945125,12.802,12.794,1.68462646]
[1672770212959,5.37945125,12.802,12.796,2.1766445]
[1672770213151,5.37945125,12.802,12.793,58.68]
[1672770214008,5.37945125,12.802,12.794,1.00939109]
[1672770214220,5.37945125,12.802,12.795,58.67]
[1672770214629,5.37945125,12.802,12.796,7.61348607]
[1672770214842,5.37945125,12.802,12.794,7.61348607]
[1672770215048,5.37945125,12.802,12.795,58.67]
[1672770215259,5.37945125,12.802,12.796,7.61348607]
[1672770215797,5.37945125,12.802,12.793,58.68]
[1672770221346,5.35320933,12.802,12.794,56.75713066]
[1672770221552,5.35320933,12.802,12.796,28.33138748]
[1672770221767,5.35320933,12.802,12.798,28.33138748]
[1672770221991,5.35320933,12.802,12.8,28.33138748]
[1672770222200,5.35320933,12.802,12.801,58.65]
[1672770222412,5.35320933,12.802,12.796,58.67]
[1672770222610,5.35320933,12.802,12.795,58.67]
[1672770227041,2.4398795,12.803,12.795,58.67]
[1672770227238,5.35320933,12.802,12.796,20.10942578]
[1672770227450,5.35320933,12.802,12.797,58.66]
[1672770227884,5.35320933,12.802,12.796,58.67]
[1672770228296,2.4398795,12.812,12.797,30.0]
[1672770228613,5.35320933,12.811,12.8,6.97]
[1672770228824,5.35320933,12.811,12.801,123.2855932]
[1672770237034,2.4398795,12.812,12.801,123.2855932]
[1672770237244,2.4398795,12.812,12.803,17.4143932]
[1672770237435,2.4398795,12.812,12.805,17.4143932]
[1672770237651,2.4398795,12.812,12.806,58.62]
[1672770237866,2.4398795,12.812,12.804,107.367]
[1672770238917,2.4398795,12.812,12.805,16.23010489]
[1672770239136,7.65258835,12.812,12.806,58.62]
[1672770242206,7.65258835,12.812,12.807,1.84060957]
[1672770242416,7.65258835,12.812,12.808,58.61]
[1672770242606,7.65258835,12.812,12.806,58.62]
[1672770245263,2.4398795,12.812,12.806,58.62]
[1672770245771,0.0098795,12.812,12.806,871.12]
[1672770245989,0.0098795,12.812,12.808,28.33138748]
[1672770246192,0.0098795,12.812,12.807,30.0]
[1672770246193,0.0098795,12.812,12.811,28.33138748]
[1672770246428,0.0098795,12.812,12.811,86.93138748]
[1672770248188,0.0098795,12.812,12.811,134.77848748]
[1672770248406,0.0098795,12.812,12.811,164.77848748]
[1672770249545,2.4398795,12.822,12.819,812.4901205]
[1672770249546,0.0098795,12.822,12.819,812.4901205]
[1672770249863,0.0098795,12.822,12.821,30.0]
[1672770250201,0.0098795,12.822,12.821,116.88138748]
[1672770250608,0.0098795,12.822,12.821,165.75318748]
[1672770251851,0.0098795,12.822,12.821,28.33138748]
[1672770252068,5.22258835,12.822,12.82,28.33138748]
[1672770253044,5.21270885,12.821,12.82,28.33138748]
[1672770253561,0.0098795,12.822,12.82,28.33138748]
[1672770253881,5.22258835,12.822,12.82,28.33138748]
[1672770254096,5.22258835,12.822,12.82,840.83138748]
[1672770254299,5.944,12.833,12.82,840.83138748]
[1672770254629,5.21270885,12.828,12.821,257.36679069]
[1672770254930,5.943,12.834,12.822,28.33138748]
[1672770255544,6.93,12.83,12.821,119.0865]
[1672770255754,5.946,12.829,12.821,119.0865]
[1672770256189,5.944,12.833,12.822,1.92288381]
[1672770256593,5.21270885,12.83,12.822,1.92288381]
[1672770256808,5.946,12.829,12.821,119.0865]
[1672770257019,5.21270885,12.832,12.821,119.0865]
[1672770257240,5.21270885,12.829,12.821,119.0865]
[1672770257658,3.445,12.833,12.821,119.0865]
[1672770257979,5.07575025,12.833,12.822,5.49611165]
[1672770258196,3.445,12.834,12.822,5.49611165]
[1672770258394,3.445,12.834,12.822,64.04611165]
[1672770258609,5.07575025,12.833,12.822,58.55]
[1672770258807,3.445,12.832,12.822,49.281]
[1672770259226,5.07575025,12.831,12.822,49.281]
[1672770259644,5.07575025,12.831,12.822,107.831]
[1672770260059,3.445,12.834,12.822,107.831]
[1672770260282,0.0008919,12.835,12.824,30.0]
[1672770260589,0.0008919,12.835,12.83,6.9]
[1672770260813,0.0008919,12.835,12.831,206.69508748]
[1672770261114,0.0008919,12.835,12.833,28.33138748]
[1672770261328,0.0008919,12.835,12.832,30.0]
[1672770261329,0.0008919,12.835,12.834,86.82138748]
[1672770261557,0.0008919,12.835,12.834,28.33138748]
[1672770262080,0.0008919,12.835,12.834,86.82138748]
[1672770263538,0.0008919,12.835,12.834,58.33138748]
[1672770264594,0.0008919,12.835,12.834,116.82138748]
[1672770265540,0.0008919,12.835,12.833,28.33138748]
[1672770265734,3.443,12.848,12.838,28.33138748]
[1672770265945,5.07575025,12.846,12.835,58.39138748]
[1672770266155,3.448,12.845,12.835,58.39138748]
[1672770266375,3.448,12.845,12.835,28.39138748]
[1672770266805,3.448,12.845,12.835,0.06]
[1672770267730,3.449,12.841,12.835,0.06]
[1672770268684,3.448,12.845,12.835,0.06]
[1672770268889,3.449,12.841,12.835,0.06]
[1672770269304,5.07575025,12.84,12.835,0.06]
[1672770269533,3.447,12.839,12.835,0.06]
[1672770269952,5.07575025,12.838,12.835,0.06]
[1672770270267,3.447,12.841,12.835,0.06]
[1672770270476,5.07575025,12.839,12.835,0.06]
[1672770272593,3.448,12.838,12.835,0.06]
[1672770272904,8.52375025,12.838,12.835,0.06]
[1672770274353,30.0,12.837,12.823,116.2627]
[1672770274569,41.80593985,12.836,12.823,116.2627]
[1672770274779,46.8816901,12.836,12.823,116.2627]
[1672770275003,5.07575025,12.835,12.823,116.2627]
[1672770275218,41.80493985,12.834,12.823,116.2627]
[1672770275634,5.07575025,12.833,12.823,116.2627]
[1672770275953,41.80593985,12.832,12.823,116.2627]
[1672770276357,5.07575025,12.831,12.823,116.2627]
[1672770277405,3.446,12.839,12.823,116.2627]
[1672770277615,3.446,12.839,12.824,58.54]
[1672770277616,38.35793985,12.838,12.824,58.54]
[1672770277826,3.446,12.837,12.824,58.54]
[1672770278041,3.447,12.838,12.824,58.54]
[1672770278252,3.447,12.839,12.824,58.54]
[1672770278461,14.13520944,12.838,12.824,58.54]
[1672770278787,8.52375025,12.837,12.824,58.54]
[1672770279192,5.07575025,12.836,12.824,58.54]
[1672770279400,3.448,12.835,12.824,58.54]
[1672770279609,14.80908374,12.834,12.823,116.2627]
[1672770279845,15.67410005,12.832,12.823,116.2627]
[1672770280037,8.52475025,12.833,12.823,116.2627]
[1672770280242,5.07575025,12.831,12.823,116.2627]
[1672770280777,13.77,12.83,12.817,58.57]
[1672770281095,53.18612689,12.829,12.815,108.9729]
[1672770281312,53.18612689,12.829,12.816,58.58]
[1672770281523,44.66337664,12.827,12.816,58.58]
[1672770281938,44.66337664,12.825,12.816,58.58]
[1672770282359,5.07575025,12.824,12.816,58.58]
[1672770283942,44.66337664,12.823,12.816,58.58]
[1672770284351,5.07575025,12.822,12.816,58.58]
[1672770285415,44.66337664,12.828,12.816,58.58]
[1672770285938,5.07575025,12.827,12.816,58.58]
[1672770286135,44.66337664,12.826,12.816,58.58]
[1672770286461,5.07575025,12.825,12.816,58.58]
[1672770286677,44.66337664,12.824,12.816,58.58]
[1672770287088,5.07575025,12.823,12.816,58.58]
[1672770290356,44.66337664,12.822,12.816,58.58]
[1672770290756,5.07575025,12.823,12.816,58.58]
[1672770291289,44.66337664,12.822,12.816,58.58]
[1672770291717,49.73912689,12.822,12.816,58.58]
[1672770291931,5.07575025,12.822,12.815,154.9614]
[1672770292122,44.66337664,12.821,12.815,154.9614]
[1672770292541,5.07575025,12.82,12.815,154.9614]
[1672770292769,44.66337664,12.819,12.815,108.9729]
[1672770292975,44.66337664,12.819,12.813,24.4735]
[1672770293183,5.07575025,12.818,12.811,165.6554]
[1672770293397,44.66337664,12.817,12.811,165.6554]
[1672770293594,44.66337664,12.817,12.811,117.8228]
[1672770293807,5.07575025,12.816,12.811,117.8228]
[1672770294124,44.66337664,12.815,12.811,117.8228]
[1672770294541,44.66337664,12.813,12.811,117.8228]
[1672770294761,44.66337664,12.813,12.809,2.4398795]
[1672770294972,49.73912689,12.813,12.809,2.4398795]
[1672770299492,44.66337664,12.813,12.809,2.4398795]
[1672770299690,46.36782581,12.818,12.809,2.4398795]
[1672770299906,5.07575025,12.819,12.809,61.0498795]
[1672770300116,46.36782581,12.818,12.809,61.0498795]
[1672770300331,46.36782581,12.821,12.809,61.0498795]
[1672770300537,46.36782581,12.821,12.809,2.4398795]
[1672770300860,46.36782581,12.821,12.81,58.6]
[1672770301070,46.36782581,12.823,12.81,58.6]
[1672770301298,46.36782581,12.823,12.811,48.2748]
[1672770301490,46.36782581,12.823,12.812,58.59]
[1672770301703,8.52175025,12.824,12.812,58.59]
[1672770301897,8.52175025,12.824,12.813,114.462]
[1672770302326,5.07575025,12.824,12.813,114.462]
[1672770302947,5.07575025,12.824,12.814,58.59]
[1672770304625,3.446,12.827,12.814,58.59]
[1672770304964,13.8,12.83,12.814,105.1603]
[1672770304965,5.07575025,12.826,12.814,105.1603]
[1672770305597,5.07575025,12.826,12.814,135.1603]
[1672770306943,5.07575025,12.826,12.815,30.0]
[1672770307159,5.07575025,12.826,12.816,58.58]
[1672770308004,5.07575025,12.826,12.817,30.0]
[1672770308339,5.07575025,12.826,12.818,58.57]
[1672770309889,5.07575025,12.826,12.817,58.57]
[1672770313070,5.07575025,12.826,12.818,5.1438151]
[1672770314935,3.447,12.833,12.819,58.56]
[1672770315147,5.37570814,12.829,12.82,52.63996457]
[1672770315367,5.37570814,12.829,12.821,108.2918]
[1672770315578,5.37570814,12.829,12.822,9.69021751]
[1672770317672,5.37570814,12.829,12.821,108.2918]
[1672770317878,3.447,12.833,12.821,108.2918]
[1672770318091,47.7984,12.834,12.822,8.5832343]
[1672770318305,5.37570814,12.832,12.822,54.8251343]
[1672770318529,5.37570814,12.832,12.823,46.2419]
[1672770318734,5.37570814,12.832,12.824,14.09389786]
[1672770319157,3.446,12.837,12.824,14.09389786]
[1672770319367,8.82170814,12.837,12.824,14.09389786]
[1672770319561,5.37570814,12.836,12.824,14.09389786]
[1672770319771,3.446,12.835,12.824,14.09389786]
[1672770320513,3.447,12.837,12.824,14.09389786]
[1672770321792,8.82270814,12.837,12.824,14.09389786]
[1672770322309,8.82270814,12.837,12.824,72.63389786]
[1672770323974,3.447,12.837,12.824,72.63389786]
[1672770324182,3.447,12.838,12.824,72.63389786]
[1672770324827,8.82270814,12.838,12.824,72.63389786]
[1672770325039,3.447,12.838,12.824,72.63389786]
[1672770325675,8.82270814,12.838,12.824,72.63389786]
[1672770326080,3.447,12.838,12.824,72.63389786]
[1672770326827,13.87,12.86,12.831,28.33138748]
[1672770327015,5.37570814,12.851,12.841,28.33138748]
[1672770327230,13.8,12.85,12.842,170.3057]
[1672770327457,13.8,12.85,12.843,28.33138748]
[1672770327671,5.37570814,12.849,12.843,28.33138748]
[1672770327862,13.8,12.85,12.83,13.87]
[1672770328193,13.8,12.85,12.831,86.84138748]
[1672770328610,73.6197,12.859,12.833,28.33138748]
[1672770328805,73.6197,12.859,12.834,241.2572]
[1672770329009,73.6197,12.859,12.837,28.33138748]
[1672770329010,5.37570814,12.853,12.837,28.33138748]
[1672770329242,5.37570814,12.853,12.836,30.0]
[1672770329243,5.37570814,12.853,12.839,28.33138748]
[1672770329460,5.37570814,12.853,12.84,58.47]
[1672770329647,5.37570814,12.853,12.841,28.33138748]
[1672770329862,5.37570814,12.853,12.842,58.46]
[1672770330195,5.37570814,12.853,12.843,28.33138748]
[1672770330381,13.84,12.85,12.844,58.45]
[1672770330587,13.84,12.85,12.845,28.33138748]
[1672770330926,5.37570814,12.853,12.845,28.33138748]
[1672770331241,5.37570814,12.853,12.84,28.33138748]
[1672770331452,13.87,12.85,12.842,28.33138748]
[1672770331766,13.87,12.85,12.844,28.33138748]
[1672770332289,13.87,12.85,12.841,28.33138748]
[1672770332607,13.87,12.85,12.843,28.33138748]
[1672770332824,13.87,12.85,12.844,58.45]
[1672770333049,13.87,12.85,12.845,28.33138748]
[1672770333351,5.37570814,12.853,12.842,28.33138748]
[1672770333562,30.0,12.849,12.844,28.33138748]
[1672770333776,30.0,12.849,12.841,113.4138]
[1672770333777,35.23994122,12.849,12.842,28.33138748]
[1672770333989,5.23994122,12.848,12.842,28.33138748]
[1672770334199,5.23994122,12.848,12.838,28.33138748]
[1672770334710,5.23994122,12.848,12.834,264.6]
[1672770334918,13.84,12.84,12.834,264.6]
[1672770335245,5.23994122,12.848,12.834,264.6]
[1672770335455,5.23994122,12.848,12.835,58.49]
[1672770336075,13.84,12.85,12.834,88.49]
[1672770336297,5.23994122,12.849,12.834,88.49]
[1672770336712,13.84,12.85,12.835,30.0]
[1672770336911,13.84,12.85,12.836,58.49]
[1672770337124,5.23994122,12.854,12.837,8.08457175]
[1672770337327,5.23994122,12.854,12.839,14.28912769]
[1672770337541,5.23994122,12.854,12.841,14.28912769]
[1672770337766,13.84,12.85,12.843,14.28912769]
[1672770337960,13.84,12.85,12.838,58.48]
[1672770338171,13.84,12.85,12.834,264.6]
[1672770338172,5.23994122,12.849,12.835,58.49]
[1672770339133,5.23994122,12.849,12.834,58.49]
[1672770343439,13.84,12.85,12.835,30.0]
[1672770343648,13.84,12.85,12.836,58.49]
[1672770344191,13.84,12.85,12.837,30.0]
[1672770344400,13.84,12.85,12.838,58.48]
[1672770344591,19.07994122,12.85,12.838,58.48]
[1672770345229,19.07994122,12.85,12.837,58.48]
[1672770348391,18.57994122,12.85,12.837,58.48]
[1672770349874,5.23994122,12.85,12.838,30.0]
[1672770350056,5.23994122,12.85,12.839,58.47]
[1672770350718,30.0,12.859,12.839,58.47]
[1672770350927,5.23994122,12.857,12.84,117.4987]
[1672770351235,5.23994122,12.857,12.841,58.46]
[1672770351764,45.20083312,12.855,12.841,58.46]
[1672770354289,13.84,12.85,12.841,58.46]
[1672770354599,13.84,12.85,12.84,117.4987]
[1672770354600,5.23994122,12.849,12.84,117.4987]
[1672770354812,5.23994122,12.849,12.841,58.46]
[1672770355004,5.23994122,12.849,12.832,58.5]
[1672770355224,5.23994122,12.849,12.832,112.9638]
[1672770355438,5.23994122,12.849,12.833,58.5]
[1672770357849,4.23994122,12.849,12.833,58.5]
[1672770358062,5.23994122,12.848,12.833,58.5]
[1672770358392,13.84,12.85,12.833,58.5]
[1672770358586,39.9608919,12.855,12.833,58.5]
[1672770358796,5.23994122,12.849,12.834,30.0]
[1672770359005,5.23994122,12.849,12.836,7.33274455]
[1672770359228,5.23994122,12.849,12.838,7.33274455]
[1672770359438,5.23994122,12.849,12.839,58.47]
[1672770359758,5.23994122,12.849,12.836,58.49]
[1672770359963,5.23994122,12.849,12.835,58.49]
[1672770360493,4.23994122,12.849,12.835,58.49]
[1672770360708,4.23994122,12.849,12.836,30.0]
[1672770360922,4.23994122,12.849,12.837,58.48]
[1672770361626,39.9608919,12.855,12.841,28.33138748]
[1672770361834,39.9608919,12.855,12.843,28.33138748]
[1672770362055,39.9608919,12.855,12.845,28.33138748]
[1672770362260,5.21359884,12.854,12.847,28.33138748]
[1672770362588,39.9608919,12.855,12.849,28.33138748]
[1672770362820,39.9608919,12.855,12.851,28.33138748]
[1672770363001,39.9608919,12.855,12.847,28.33138748]
[1672770363227,39.9608919,12.855,12.849,28.33138748]
[1672770363436,39.9608919,12.855,12.85,58.42]
[1672770363627,39.9608919,12.855,12.851,28.33138748]
[1672770363953,39.9608919,12.855,12.847,28.33138748]
[1672770364169,39.9608919,12.855,12.85,28.33138748]
[1672770364359,1.6701919,12.855,12.852,28.33138748]
[1672770364565,1.6701919,12.855,12.849,30.0]
[1672770364566,0.0001919,12.855,12.854,28.33138748]
[1672770364780,0.0001919,12.855,12.854,86.73138748]
[1672770364990,13.84,12.87,12.856,28.33138748]
[1672770365312,13.84,12.87,12.858,28.33138748]
[1672770365313,5.18725645,12.863,12.858,28.33138748]
[1672770365732,13.84,12.87,12.857,28.33138748]
[1672770365960,13.84,12.87,12.858,58.24298723]
[1672770365961,5.18725645,12.869,12.858,58.24298723]
[1672770366165,5.18725645,12.869,12.859,28.33138748]
[1672770366375,5.18725645,12.869,12.86,58.38]
[1672770366585,5.18725645,12.869,12.861,28.33138748]
[1672770366800,5.18725645,12.869,12.862,58.37]
[1672770367007,5.18725645,12.869,12.863,28.33138748]
[1672770367203,13.84,12.88,12.863,28.33138748]
[1672770367414,5.18725645,12.877,12.864,58.36]